[Event "Titled Tuesday Blitz January 03 Early 2023"]
[White "Cnejev, Vladimir-Alexandru"]
[Black "Ljukin, Sergei"]
[WhiteFideId "1260898"]
[BlackFideId "14102200"]
[WhiteElo "2374"]
[BlackElo "2362"]
[Result "1-0"]
[Round "05"]
[TimeControl "180+2"]
[Date "2023.01.03"]
[WhiteClock "0:00:02"]
[BlackClock "0:00:09"]

1. e4 {[%clk 0:03:00]}  e6 {[%clk 0:02:54]} 2. d4 {[%clk 0:03:00]}  d5 {[%clk 0:02:54]} 3. e5 {[%clk 0:03:01]}  c5 {[%clk 0:02:54]} 4. c3 {[%clk 0:03:02]}  Nc6 {[%clk 0:02:55]} 5. Nf3 {[%clk 0:03:02]}  Qb6 {[%clk 0:02:55]} 6. a3 {[%clk 0:03:02]}  f6 {[%clk 0:02:54]} 7. Bd3 {[%clk 0:02:50]}  c4 {[%clk 0:02:52]} 8. Bc2 {[%clk 0:02:49]}  fxe5 {[%clk 0:02:51]} 9. Nxe5 {[%clk 0:02:45]}  Nf6 {[%clk 0:02:48]} 10. O-O {[%clk 0:02:45]}  Bd6 {[%clk 0:02:49]} 11. Re1 {[%clk 0:02:43]}  O-O {[%clk 0:02:47]} 12. f4 {[%clk 0:02:42]}  Nd7 {[%clk 0:02:34]} 13. Nxd7 {[%clk 0:01:56]}  Bxd7 {[%clk 0:02:29]} 14. Qh5 {[%clk 0:01:56]}  h6 {[%clk 0:02:27]} 15. Qg6 {[%clk 0:01:57]}  Rf6 {[%clk 0:02:27]} 16. Qh7+ {[%clk 0:01:57]}  Kf7 {[%clk 0:02:27]} 17. Bd1 {[%clk 0:01:41]}  Bf8 {[%clk 0:02:04]} 18. Bh5+ {[%clk 0:01:40]}  Ke7 {[%clk 0:02:03]} 19. f5 {[%clk 0:01:38]}  e5 {[%clk 0:01:55]} 20. Kh1 {[%clk 0:01:37]}  Bxf5 {[%clk 0:01:52]} 21. Qh8 {[%clk 0:01:29]}  e4 {[%clk 0:01:50]} 22. Nd2 {[%clk 0:01:17]}  Kd7 {[%clk 0:01:40]} 23. Nf1 {[%clk 0:00:56]}  Rd8 {[%clk 0:01:34]} 24. Ne3 {[%clk 0:00:50]}  Be6 {[%clk 0:01:34]} 25. Bg4 {[%clk 0:00:42]}  Kc8 {[%clk 0:01:29]} 26. Bxe6+ {[%clk 0:00:35]}  Rxe6 {[%clk 0:01:29]} 27. Qh7 {[%clk 0:00:26]}  Ne7 {[%clk 0:01:12]} 28. Rb1 {[%clk 0:00:26]}  Ng6 {[%clk 0:00:33]} 29. b3 {[%clk 0:00:20]}  cxb3 {[%clk 0:00:32]} 30. c4 {[%clk 0:00:19]}  dxc4 {[%clk 0:00:31]} 31. Nxc4 {[%clk 0:00:19]}  Qxd4 {[%clk 0:00:31]} 32. Be3 {[%clk 0:00:15]}  Qxc4 {[%clk 0:00:15]} 33. Rbc1 {[%clk 0:00:12]}  Qxc1 {[%clk 0:00:15]} 34. Rxc1+ {[%clk 0:00:13]}  Kb8 {[%clk 0:00:15]} 35. Qg8 {[%clk 0:00:09]}  b2 {[%clk 0:00:14]} 36. Rb1 {[%clk 0:00:05]}  Red6 {[%clk 0:00:14]} 37. Qb3 {[%clk 0:00:04]}  Rb6 {[%clk 0:00:11]} 38. Bxb6 {[%clk 0:00:04]}  axb6 {[%clk 0:00:11]} 39. Qxb2 {[%clk 0:00:04]}  Nf4 {[%clk 0:00:09]} 40. Qf2 {[%clk 0:00:03]}  Nd5 {[%clk 0:00:09]} 41. h3 {[%clk 0:00:02]}  e3 {[%clk 0:00:10]} 42. Qe2 {[%clk 0:00:02]}  Bc5 {[%clk 0:00:10]} 43. Rd1 {[%clk 0:00:01]}  Rd7 {[%clk 0:00:09]} 44. Qc4 {[%clk 0:00:02]}  e2 {[%clk 0:00:09]} 45. Qxe2 {[%clk 0:00:01]}  Nc3 {[%clk 0:00:09]} 46. Qe8+ {[%clk 0:00:01]}  Kc7 {[%clk 0:00:09]} 47. Qxd7+ {[%clk 0:00:02]} 1-0


[Site "https://www.chess.com"]

[Event "Titled Tuesday Blitz January 03 Early 2023"]
[White "Gascon Del Nogal, Jose Rafael"]
[Black "Legenia, Artem"]
[WhiteFideId "3902463"]
[BlackFideId "14136945"]
[WhiteElo "2459"]
[BlackElo "2092"]
[Result "1-0"]
[Round "05"]
[TimeControl "180+2"]
[Date "2023.01.03"]
[WhiteClock "0:00:59"]
[BlackClock "0:01:59"]

1. e4 {[%clk 0:03:00]}  c5 {[%clk 0:02:55]} 2. Nf3 {[%clk 0:02:56]}  e6 {[%clk 0:02:54]} 3. d4 {[%clk 0:02:56]}  cxd4 {[%clk 0:02:53]} 4. Nxd4 {[%clk 0:02:57]}  d6 {[%clk 0:02:53]} 5. c4 {[%clk 0:02:56]}  Nf6 {[%clk 0:02:52]} 6. Nc3 {[%clk 0:02:57]}  a6 {[%clk 0:02:52]} 7. Be2 {[%clk 0:02:56]}  g6 {[%clk 0:02:51]} 8. Be3 {[%clk 0:02:43]}  Bg7 {[%clk 0:02:51]} 9. Qd2 {[%clk 0:02:44]}  d5 {[%clk 0:02:41]} 10. cxd5 {[%clk 0:02:41]}  exd5 {[%clk 0:02:41]} 11. e5 {[%clk 0:02:41]}  Ne4 {[%clk 0:02:39]} 12. Nxe4 {[%clk 0:02:40]}  dxe4 {[%clk 0:02:39]} 13. Bg5 {[%clk 0:02:08]}  Qd5 {[%clk 0:02:32]} 14. Bf6 {[%clk 0:01:49]}  O-O {[%clk 0:02:31]} 15. h4 {[%clk 0:01:40]}  h5 {[%clk 0:02:22]} 16. g4 {[%clk 0:01:34]}  Nc6 {[%clk 0:02:22]} 17. Nxc6 {[%clk 0:01:31]}  Qxd2+ {[%clk 0:02:21]} 18. Kxd2 {[%clk 0:01:31]}  bxc6 {[%clk 0:02:22]} 19. gxh5 {[%clk 0:01:30]}  Re8 {[%clk 0:02:02]} 20. hxg6 {[%clk 0:01:16]}  fxg6 {[%clk 0:02:01]} 21. Rag1 {[%clk 0:01:10]}  Bxf6 {[%clk 0:02:00]} 22. exf6 {[%clk 0:01:02]}  Kf7 {[%clk 0:02:00]} 23. h5 {[%clk 0:01:00]}  gxh5 {[%clk 0:01:59]} 24. Bxh5+ {[%clk 0:00:59]} 1-0


[Site "https://www.chess.com"]

[Event "Titled Tuesday Blitz January 03 Early 2023"]
[White "Martinez Ramirez, Lennis"]
[Black "Pein, Jonathan"]
[WhiteFideId "3509079"]
[BlackFideId "417092"]
[WhiteElo "2426"]
[BlackElo "2265"]
[Result "1-0"]
[Round "05"]
[TimeControl "180+2"]
[Date "2023.01.03"]
[WhiteClock "0:00:58"]
[BlackClock "0:00:02"]

1. d4 {[%clk 0:03:00]}  Nf6 {[%clk 0:02:58]} 2. c4 {[%clk 0:03:00]}  g6 {[%clk 0:02:59]} 3. Nc3 {[%clk 0:02:59]}  Bg7 {[%clk 0:03:00]} 4. e4 {[%clk 0:02:59]}  O-O {[%clk 0:03:00]} 5. h3 {[%clk 0:03:00]}  Nc6 {[%clk 0:03:00]} 6. d5 {[%clk 0:02:58]}  Nb8 {[%clk 0:03:00]} 7. e5 {[%clk 0:02:56]}  Ne8 {[%clk 0:03:00]} 8. Nf3 {[%clk 0:02:56]}  d6 {[%clk 0:03:00]} 9. Bf4 {[%clk 0:02:56]}  Nd7 {[%clk 0:02:57]} 10. exd6 {[%clk 0:02:55]}  cxd6 {[%clk 0:02:55]} 11. Rc1 {[%clk 0:02:49]}  Qb6 {[%clk 0:02:52]} 12. Qd2 {[%clk 0:02:47]}  e5 {[%clk 0:02:46]} 13. dxe6 {[%clk 0:02:42]}  fxe6 {[%clk 0:02:47]} 14. Be3 {[%clk 0:02:42]}  Qa5 {[%clk 0:02:40]} 15. a3 {[%clk 0:02:38]}  Rxf3 {[%clk 0:02:20]} 16. gxf3 {[%clk 0:02:39]}  b6 {[%clk 0:02:15]} 17. f4 {[%clk 0:02:36]}  Bb7 {[%clk 0:02:15]} 18. Rg1 {[%clk 0:02:36]}  Nef6 {[%clk 0:02:09]} 19. Qxd6 {[%clk 0:02:35]}  Nf8 {[%clk 0:02:02]} 20. Rg5 {[%clk 0:02:27]}  Ne4 {[%clk 0:01:33]} 21. Rxa5 {[%clk 0:02:21]}  Nxd6 {[%clk 0:01:33]} 22. Ra4 {[%clk 0:02:17]}  Nd7 {[%clk 0:01:29]} 23. Nb5 {[%clk 0:02:15]}  Nf5 {[%clk 0:01:21]} 24. Rxa7 {[%clk 0:02:06]}  Rxa7 {[%clk 0:01:21]} 25. Nxa7 {[%clk 0:02:07]}  Bxb2 {[%clk 0:01:22]} 26. Rd1 {[%clk 0:02:04]}  Nc5 {[%clk 0:01:21]} 27. Nb5 {[%clk 0:02:03]}  Bc6 {[%clk 0:01:03]} 28. Rd8+ {[%clk 0:01:59]}  Kg7 {[%clk 0:01:00]} 29. Rb8 {[%clk 0:01:59]}  Nd7 {[%clk 0:00:38]} 30. Rc8 {[%clk 0:01:59]}  Bxb5 {[%clk 0:00:28]} 31. cxb5 {[%clk 0:01:58]}  Kf6 {[%clk 0:00:21]} 32. a4 {[%clk 0:01:56]}  Ba3 {[%clk 0:00:19]} 33. Rc7 {[%clk 0:01:55]}  Bb4+ {[%clk 0:00:19]} 34. Kd1 {[%clk 0:01:55]}  Nxe3+ {[%clk 0:00:18]} 35. fxe3 {[%clk 0:01:54]}  Nc5 {[%clk 0:00:17]} 36. Rxh7 {[%clk 0:01:53]}  Nxa4 {[%clk 0:00:17]} 37. e4 {[%clk 0:01:48]}  Nc3+ {[%clk 0:00:17]} 38. Kc2 {[%clk 0:01:43]}  Nxe4 {[%clk 0:00:18]} 39. Kb3 {[%clk 0:01:43]}  Bc5 {[%clk 0:00:18]} 40. Bg2 {[%clk 0:01:42]}  Nd6 {[%clk 0:00:18]} 41. Bc6 {[%clk 0:01:40]}  Be3 {[%clk 0:00:18]} 42. Rh4 {[%clk 0:01:33]}  Nf5 {[%clk 0:00:19]} 43. Rg4 {[%clk 0:01:32]}  Nh6 {[%clk 0:00:19]} 44. Rg2 {[%clk 0:01:27]}  Bxf4 {[%clk 0:00:19]} 45. Be4 {[%clk 0:01:28]}  g5 {[%clk 0:00:18]} 46. Kc4 {[%clk 0:01:28]}  Nf7 {[%clk 0:00:18]} 47. Ra2 {[%clk 0:01:24]}  Nd6+ {[%clk 0:00:18]} 48. Kd3 {[%clk 0:01:23]}  Nxb5 {[%clk 0:00:19]} 49. Ra6 {[%clk 0:01:22]}  Nd6 {[%clk 0:00:16]} 50. Rxb6 {[%clk 0:01:21]}  Nxe4 {[%clk 0:00:12]} 51. Kxe4 {[%clk 0:01:22]}  Bc7 {[%clk 0:00:08]} 52. Rb7 {[%clk 0:01:22]}  Bf4 {[%clk 0:00:08]} 53. h4 {[%clk 0:01:22]}  e5 {[%clk 0:00:07]} 54. h5 {[%clk 0:01:22]}  g4 {[%clk 0:00:07]} 55. Rb6+ {[%clk 0:01:20]}  Kg7 {[%clk 0:00:07]} 56. Rg6+ {[%clk 0:01:19]}  Kh7 {[%clk 0:00:07]} 57. Rxg4 {[%clk 0:01:17]}  Kh6 {[%clk 0:00:08]} 58. Rh4 {[%clk 0:01:17]}  Bg3 {[%clk 0:00:08]} 59. Rh1 {[%clk 0:01:18]}  Bf4 {[%clk 0:00:09]} 60. Kf5 {[%clk 0:01:18]}  Bg3 {[%clk 0:00:09]} 61. Kg4 {[%clk 0:01:18]}  Bf2 {[%clk 0:00:08]} 62. Ra1 {[%clk 0:01:19]}  e4 {[%clk 0:00:07]} 63. Ra6+ {[%clk 0:01:19]}  Kh7 {[%clk 0:00:07]} 64. Re6 {[%clk 0:01:11]}  e3 {[%clk 0:00:06]} 65. h6 {[%clk 0:01:11]}  Bg1 {[%clk 0:00:02]} 66. Kg5 {[%clk 0:01:11]}  Bf2 {[%clk 0:00:02]} 67. Re7+ {[%clk 0:01:11]}  Kg8 {[%clk 0:00:03]} 68. h7+ {[%clk 0:01:10]}  Kf8 {[%clk 0:00:03]} 69. Re4 {[%clk 0:01:00]}  Kg7 {[%clk 0:00:03]} 70. Re7+ {[%clk 0:01:00]}  Kh8 {[%clk 0:00:04]} 71. Kg6 {[%clk 0:00:59]}  Bh4 {[%clk 0:00:02]} 72. Re8# {[%clk 0:00:58]} 1-0


[Site "https://www.chess.com"]

[Event "Titled Tuesday Blitz January 03 Early 2023"]
[White "Buscar, Michael"]
[Black "Florescu, Codrut-Constantin"]
[WhiteFideId "2603616"]
[BlackFideId "1202200"]
[WhiteElo "2041"]
[BlackElo "2259"]
[Result "0-1"]
[Round "05"]
[TimeControl "180+2"]
[Date "2023.01.03"]
[WhiteClock "0:00:10"]
[BlackClock "0:01:37"]

1. d4 {[%clk 0:02:37]}  Nf6 {[%clk 0:02:59]} 2. c4 {[%clk 0:02:37]}  e6 {[%clk 0:02:59]} 3. Nc3 {[%clk 0:02:37]}  Bb4 {[%clk 0:02:59]} 4. e3 {[%clk 0:02:35]}  O-O {[%clk 0:02:58]} 5. Bd3 {[%clk 0:02:36]}  d5 {[%clk 0:02:56]} 6. Ne2 {[%clk 0:02:36]}  c5 {[%clk 0:02:55]} 7. O-O {[%clk 0:02:34]}  dxc4 {[%clk 0:02:54]} 8. Bxc4 {[%clk 0:02:35]}  Qe7 {[%clk 0:02:53]} 9. a3 {[%clk 0:02:35]}  Ba5 {[%clk 0:02:50]} 10. dxc5 {[%clk 0:02:32]}  Qxc5 {[%clk 0:02:47]} 11. Ba2 {[%clk 0:02:24]}  Qh5 {[%clk 0:02:45]} 12. Ng3 {[%clk 0:02:19]}  Qxd1 {[%clk 0:02:43]} 13. Rxd1 {[%clk 0:02:17]}  Bxc3 {[%clk 0:02:43]} 14. bxc3 {[%clk 0:02:17]}  Nc6 {[%clk 0:02:43]} 15. a4 {[%clk 0:02:11]}  b6 {[%clk 0:02:42]} 16. Ba3 {[%clk 0:02:10]}  Re8 {[%clk 0:02:39]} 17. Rd6 {[%clk 0:02:05]}  Na5 {[%clk 0:02:35]} 18. Rad1 {[%clk 0:02:03]}  Ba6 {[%clk 0:02:34]} 19. Bb4 {[%clk 0:01:56]}  Nc4 {[%clk 0:02:32]} 20. Bxc4 {[%clk 0:01:52]}  Bxc4 {[%clk 0:02:32]} 21. a5 {[%clk 0:01:45]}  bxa5 {[%clk 0:02:27]} 22. Bxa5 {[%clk 0:01:44]}  Bd5 {[%clk 0:02:26]} 23. Rb1 {[%clk 0:01:39]}  Reb8 {[%clk 0:02:22]} 24. Rxb8+ {[%clk 0:01:38]}  Rxb8 {[%clk 0:02:22]} 25. Rd8+ {[%clk 0:01:39]}  Rxd8 {[%clk 0:02:21]} 26. Bxd8 {[%clk 0:01:40]}  Bc4 {[%clk 0:02:16]} 27. e4 {[%clk 0:01:34]}  Kf8 {[%clk 0:02:12]} 28. f3 {[%clk 0:01:34]}  Ke8 {[%clk 0:02:11]} 29. Ba5 {[%clk 0:01:34]}  Kd7 {[%clk 0:02:11]} 30. Kf2 {[%clk 0:01:35]}  Kc6 {[%clk 0:02:11]} 31. Bb4 {[%clk 0:01:27]}  Kb5 {[%clk 0:02:10]} 32. Ne2 {[%clk 0:01:20]}  Bxe2 {[%clk 0:02:08]} 33. Kxe2 {[%clk 0:01:20]}  Kc4 {[%clk 0:02:05]} 34. Kd2 {[%clk 0:01:09]}  Nd7 {[%clk 0:02:03]} 35. h4 {[%clk 0:01:02]}  h5 {[%clk 0:02:02]} 36. Ba5 {[%clk 0:00:51]}  Ne5 {[%clk 0:02:00]} 37. Bd8 {[%clk 0:00:48]}  Nc6 {[%clk 0:01:59]} 38. Bc7 {[%clk 0:00:38]}  a5 {[%clk 0:01:58]} 39. Kc2 {[%clk 0:00:39]}  a4 {[%clk 0:01:58]} 40. Bd6 {[%clk 0:00:38]}  Na7 {[%clk 0:01:57]} 41. Bf8 {[%clk 0:00:35]}  g6 {[%clk 0:01:56]} 42. g4 {[%clk 0:00:32]}  Nb5 {[%clk 0:01:55]} 43. Bb4 {[%clk 0:00:30]}  Nd4+ {[%clk 0:01:48]} 44. cxd4 {[%clk 0:00:28]}  Kxb4 {[%clk 0:01:48]} 45. f4 {[%clk 0:00:16]}  Kc4 {[%clk 0:01:45]} 46. f5 {[%clk 0:00:16]}  Kxd4 {[%clk 0:01:38]} 47. gxh5 {[%clk 0:00:10]}  gxh5 {[%clk 0:01:37]} 0-1


[Site "https://www.chess.com"]

[Event "Titled Tuesday Blitz January 03 Early 2023"]
[White "Mihajlov, Sebastian"]
[Black "Ovezdurdyyeva, Jemal"]
[WhiteFideId "1512110"]
[BlackFideId "14001888"]
[WhiteElo "2373"]
[BlackElo "2078"]
[Result "1-0"]
[Round "05"]
[TimeControl "180+2"]
[Date "2023.01.03"]
[WhiteClock "0:00:27"]
[BlackClock "0:00:12"]

1. e4 {[%clk 0:02:50]}  d6 {[%clk 0:02:59]} 2. d4 {[%clk 0:02:50]}  Nf6 {[%clk 0:02:59]} 3. Nc3 {[%clk 0:02:51]}  g6 {[%clk 0:02:59]} 4. Be3 {[%clk 0:02:51]}  c6 {[%clk 0:02:59]} 5. f3 {[%clk 0:02:47]}  b5 {[%clk 0:02:59]} 6. g4 {[%clk 0:02:43]}  Bg7 {[%clk 0:02:56]} 7. Qd2 {[%clk 0:02:37]}  h5 {[%clk 0:02:54]} 8. g5 {[%clk 0:02:32]}  Nfd7 {[%clk 0:02:54]} 9. f4 {[%clk 0:02:29]}  e6 {[%clk 0:02:35]} 10. Nf3 {[%clk 0:02:26]}  a6 {[%clk 0:02:28]} 11. f5 {[%clk 0:02:12]}  exf5 {[%clk 0:02:25]} 12. exf5 {[%clk 0:02:12]}  gxf5 {[%clk 0:02:25]} 13. Bd3 {[%clk 0:02:09]}  Nf8 {[%clk 0:02:24]} 14. Nh4 {[%clk 0:02:05]}  f4 {[%clk 0:02:06]} 15. Bxf4 {[%clk 0:02:04]}  Qe7+ {[%clk 0:02:06]} 16. Ne2 {[%clk 0:01:57]}  Bxd4 {[%clk 0:02:05]} 17. O-O-O {[%clk 0:01:57]}  Be5 {[%clk 0:02:02]} 18. Bxe5 {[%clk 0:01:53]}  dxe5 {[%clk 0:02:02]} 19. Ng3 {[%clk 0:01:52]}  Rg8 {[%clk 0:01:52]} 20. Ne4 {[%clk 0:01:22]}  Nh7 {[%clk 0:01:24]} 21. Qf2 {[%clk 0:01:02]}  Bg4 {[%clk 0:01:00]} 22. Nd6+ {[%clk 0:00:36]}  Qxd6 {[%clk 0:00:33]} 23. Bxh7 {[%clk 0:00:37]}  Bxd1 {[%clk 0:00:31]} 24. Rxd1 {[%clk 0:00:38]}  Qf8 {[%clk 0:00:29]} 25. Qd2 {[%clk 0:00:26]}  Qe7 {[%clk 0:00:14]} 26. Bxg8 {[%clk 0:00:26]}  Nd7 {[%clk 0:00:14]} 27. Nf5 {[%clk 0:00:27]}  Qe6 {[%clk 0:00:12]} 28. Ng7+ {[%clk 0:00:27]} 1-0


[Site "https://www.chess.com"]

[Event "Titled Tuesday Blitz January 03 Early 2023"]
[White "Graca, Robert"]
[Black "Leschinsky, Gary"]
[WhiteFideId "644943"]
[BlackFideId "30951321"]
[WhiteElo "2270"]
[BlackElo "1969"]
[Result "1-0"]
[Round "05"]
[TimeControl "180+2"]
[Date "2023.01.03"]
[WhiteClock "0:02:12"]
[BlackClock "0:01:57"]

1. Nf3 {[%clk 0:02:54]}  c5 {[%clk 0:02:22]} 2. c4 {[%clk 0:02:51]}  Nc6 {[%clk 0:02:20]} 3. d4 {[%clk 0:02:50]}  cxd4 {[%clk 0:02:21]} 4. Nxd4 {[%clk 0:02:50]}  Nf6 {[%clk 0:02:21]} 5. Nc3 {[%clk 0:02:50]}  e6 {[%clk 0:02:21]} 6. g3 {[%clk 0:02:50]}  Be7 {[%clk 0:02:22]} 7. Bg2 {[%clk 0:02:50]}  O-O {[%clk 0:02:22]} 8. O-O {[%clk 0:02:50]}  a6 {[%clk 0:02:23]} 9. b3 {[%clk 0:02:49]}  Qc7 {[%clk 0:02:20]} 10. Bb2 {[%clk 0:02:48]}  d6 {[%clk 0:02:21]} 11. Rc1 {[%clk 0:02:48]}  Nxd4 {[%clk 0:02:19]} 12. Qxd4 {[%clk 0:02:47]}  Bd7 {[%clk 0:02:19]} 13. Rfd1 {[%clk 0:02:47]}  Bc6 {[%clk 0:02:17]} 14. Nd5 {[%clk 0:02:47]}  Qd8 {[%clk 0:02:00]} 15. Nxe7+ {[%clk 0:02:36]}  Qxe7 {[%clk 0:02:01]} 16. Bxc6 {[%clk 0:02:33]}  bxc6 {[%clk 0:02:00]} 17. Qxd6 {[%clk 0:02:33]}  Qxd6 {[%clk 0:01:58]} 18. Rxd6 {[%clk 0:02:34]}  Rfc8 {[%clk 0:01:58]} 19. Rcd1 {[%clk 0:02:24]}  Ne8 {[%clk 0:01:58]} 20. Rd7 {[%clk 0:02:22]}  Rc7 {[%clk 0:01:56]} 21. Rxc7 {[%clk 0:02:12]}  Nxc7 {[%clk 0:01:57]} 22. Rd6 {[%clk 0:02:12]} 1-0


[Site "https://www.chess.com"]

[Event "Titled Tuesday Blitz January 03 Early 2023"]
[White "Perez Rodriguez, Jennifer"]
[Black "Goltseva, Ekaterina"]
[WhiteFideId "3507831"]
[BlackFideId "24173770"]
[WhiteElo "2242"]
[BlackElo "2283"]
[Result "1-0"]
[Round "05"]
[TimeControl "180+2"]
[Date "2023.01.03"]
[WhiteClock "0:01:18"]
[BlackClock "0:00:05"]

1. e4 {[%clk 0:03:00]}  e6 {[%clk 0:02:45]} 2. d4 {[%clk 0:02:59]}  d5 {[%clk 0:02:44]} 3. Bd3 {[%clk 0:02:57]}  c5 {[%clk 0:02:44]} 4. exd5 {[%clk 0:02:54]}  exd5 {[%clk 0:02:43]} 5. Nf3 {[%clk 0:02:53]}  Nf6 {[%clk 0:02:40]} 6. O-O {[%clk 0:02:53]}  Be7 {[%clk 0:02:31]} 7. dxc5 {[%clk 0:02:51]}  O-O {[%clk 0:02:29]} 8. b4 {[%clk 0:02:50]}  a5 {[%clk 0:02:26]} 9. c3 {[%clk 0:02:50]}  b6 {[%clk 0:02:24]} 10. Bb2 {[%clk 0:02:31]}  bxc5 {[%clk 0:02:14]} 11. b5 {[%clk 0:02:30]}  Nbd7 {[%clk 0:02:03]} 12. Re1 {[%clk 0:02:25]}  Bd6 {[%clk 0:01:54]} 13. c4 {[%clk 0:02:19]}  d4 {[%clk 0:01:53]} 14. Nbd2 {[%clk 0:02:18]}  Bb7 {[%clk 0:01:48]} 15. a4 {[%clk 0:02:15]}  Re8 {[%clk 0:01:43]} 16. Rxe8+ {[%clk 0:02:10]}  Qxe8 {[%clk 0:01:43]} 17. Qe1 {[%clk 0:02:10]}  Nb6 {[%clk 0:01:41]} 18. Qxe8+ {[%clk 0:02:04]}  Rxe8 {[%clk 0:01:40]} 19. Nb3 {[%clk 0:02:04]}  Ra8 {[%clk 0:01:39]} 20. Bc1 {[%clk 0:02:01]}  Bxf3 {[%clk 0:01:34]} 21. gxf3 {[%clk 0:01:59]}  Nfd7 {[%clk 0:01:34]} 22. Bd2 {[%clk 0:01:59]}  Ne5 {[%clk 0:01:32]} 23. Be4 {[%clk 0:01:53]}  Ra7 {[%clk 0:01:26]} 24. Nxa5 {[%clk 0:01:44]}  Nbxc4 {[%clk 0:01:02]} 25. Nxc4 {[%clk 0:01:43]}  Nxc4 {[%clk 0:01:02]} 26. a5 {[%clk 0:01:36]}  Nxd2 {[%clk 0:00:43]} 27. b6 {[%clk 0:01:36]}  Ra6 {[%clk 0:00:43]} 28. Bb7 {[%clk 0:01:29]}  Nb3 {[%clk 0:00:20]} 29. Bxa6 {[%clk 0:01:27]}  Nxa1 {[%clk 0:00:19]} 30. Bc4 {[%clk 0:01:28]}  Nb3 {[%clk 0:00:09]} 31. a6 {[%clk 0:01:21]}  Na5 {[%clk 0:00:02]} 32. a7 {[%clk 0:01:21]}  Nxc4 {[%clk 0:00:03]} 33. a8=Q+ {[%clk 0:01:21]}  Bf8 {[%clk 0:00:04]} 34. b7 {[%clk 0:01:19]}  Nd2 {[%clk 0:00:05]} 35. b8=Q {[%clk 0:01:19]}  c4 {[%clk 0:00:05]} 36. Qxf8# {[%clk 0:01:18]} 1-0


[Site "https://www.chess.com"]

[Event "Titled Tuesday Blitz January 03 Early 2023"]
[White "Zaksaite, Salomeja"]
[Black "Fiorito, Francisco"]
[WhiteFideId "12801496"]
[BlackFideId "180165"]
[WhiteElo "2283"]
[BlackElo "2305"]
[Result "0-1"]
[Round "05"]
[TimeControl "180+2"]
[Date "2023.01.03"]
[WhiteClock "0:00:01"]
[BlackClock "0:01:05"]

1. e4 {[%clk 0:02:58]}  c5 {[%clk 0:02:59]} 2. Nf3 {[%clk 0:02:58]}  Nc6 {[%clk 0:03:00]} 3. Bb5 {[%clk 0:02:57]}  g6 {[%clk 0:02:57]} 4. O-O {[%clk 0:02:57]}  Bg7 {[%clk 0:02:57]} 5. Re1 {[%clk 0:02:57]}  Nf6 {[%clk 0:02:55]} 6. e5 {[%clk 0:02:57]}  Nd5 {[%clk 0:02:55]} 7. Nc3 {[%clk 0:02:57]}  Nxc3 {[%clk 0:02:41]} 8. dxc3 {[%clk 0:02:57]}  O-O {[%clk 0:02:42]} 9. Qd5 {[%clk 0:02:57]}  Qa5 {[%clk 0:02:29]} 10. a4 {[%clk 0:02:33]}  a6 {[%clk 0:02:28]} 11. Bc4 {[%clk 0:02:24]}  b5 {[%clk 0:02:22]} 12. axb5 {[%clk 0:01:37]}  Qxa1 {[%clk 0:02:20]} 13. bxc6 {[%clk 0:01:37]}  dxc6 {[%clk 0:02:19]} 14. Qxc5 {[%clk 0:01:29]}  Bg4 {[%clk 0:02:09]} 15. Ng5 {[%clk 0:01:23]}  e6 {[%clk 0:02:04]} 16. h3 {[%clk 0:01:16]}  Bf5 {[%clk 0:02:04]} 17. Bb3 {[%clk 0:00:56]}  h6 {[%clk 0:01:57]} 18. Nf3 {[%clk 0:00:25]}  g5 {[%clk 0:01:42]} 19. Bxg5 {[%clk 0:00:17]}  Qxe1+ {[%clk 0:01:41]} 20. Nxe1 {[%clk 0:00:16]}  hxg5 {[%clk 0:01:42]} 21. Nf3 {[%clk 0:00:15]}  Rfd8 {[%clk 0:01:41]} 22. Nxg5 {[%clk 0:00:12]}  Rd7 {[%clk 0:01:32]} 23. g4 {[%clk 0:00:11]}  Bg6 {[%clk 0:01:26]} 24. Nxe6 {[%clk 0:00:11]}  Rd1+ {[%clk 0:01:26]} 25. Kg2 {[%clk 0:00:11]}  fxe6 {[%clk 0:01:27]} 26. Bxe6+ {[%clk 0:00:11]}  Kh8 {[%clk 0:01:27]} 27. Qxc6 {[%clk 0:00:10]}  Rf8 {[%clk 0:01:26]} 28. Bd5 {[%clk 0:00:05]}  Bxc2 {[%clk 0:01:20]} 29. Bf3 {[%clk 0:00:04]}  Re1 {[%clk 0:01:17]} 30. e6 {[%clk 0:00:03]}  Bh7 {[%clk 0:01:11]} 31. Qd7 {[%clk 0:00:02]}  Bf6 {[%clk 0:01:08]} 32. c4 {[%clk 0:00:01]}  Bg8 {[%clk 0:01:06]} 33. Bd5 {[%clk 0:00:01]}  Bh4 {[%clk 0:01:05]} 34. c5 {[%clk 0:00:01]}  Rxf2# {[%clk 0:01:05]} 0-1


[Site "https://www.chess.com"]

[Event "Titled Tuesday Blitz January 03 Early 2023"]
[White "Iskusnyh, Sergei"]
[Black "Ankerst, Mihael"]
[WhiteFideId "4120027"]
[BlackFideId "14602369"]
[WhiteElo "2440"]
[BlackElo "2370"]
[Result "1-0"]
[Round "05"]
[TimeControl "180+2"]
[Date "2023.01.03"]
[WhiteClock "0:00:16"]
[BlackClock "0:00:07"]

1. e4 {[%clk 0:03:00]}  c5 {[%clk 0:01:59]} 2. Nf3 {[%clk 0:02:57]}  Qb6 {[%clk 0:01:58]} 3. Nc3 {[%clk 0:02:52]}  Nc6 {[%clk 0:01:58]} 4. Bb5 {[%clk 0:02:49]}  e6 {[%clk 0:01:58]} 5. O-O {[%clk 0:02:47]}  Nge7 {[%clk 0:01:58]} 6. Re1 {[%clk 0:02:44]}  Ng6 {[%clk 0:01:59]} 7. Bxc6 {[%clk 0:02:39]}  bxc6 {[%clk 0:01:58]} 8. d3 {[%clk 0:02:34]}  Be7 {[%clk 0:01:59]} 9. Na4 {[%clk 0:02:27]}  Qa5 {[%clk 0:01:55]} 10. c4 {[%clk 0:02:27]}  e5 {[%clk 0:01:54]} 11. Bd2 {[%clk 0:02:17]}  Qc7 {[%clk 0:01:54]} 12. a3 {[%clk 0:01:54]}  a5 {[%clk 0:01:51]} 13. b4 {[%clk 0:01:42]}  axb4 {[%clk 0:01:49]} 14. axb4 {[%clk 0:01:40]}  cxb4 {[%clk 0:01:50]} 15. c5 {[%clk 0:01:40]}  O-O {[%clk 0:01:42]} 16. Bxb4 {[%clk 0:01:37]}  Nf4 {[%clk 0:01:33]} 17. Nb6 {[%clk 0:01:30]}  Rb8 {[%clk 0:01:25]} 18. Bc3 {[%clk 0:01:25]}  Bxc5 {[%clk 0:01:13]} 19. Nxc8 {[%clk 0:01:24]}  Rfxc8 {[%clk 0:01:13]} 20. Bxe5 {[%clk 0:01:23]}  Bd6 {[%clk 0:01:13]} 21. Bc3 {[%clk 0:01:13]}  c5 {[%clk 0:01:05]} 22. g3 {[%clk 0:01:06]}  Ne6 {[%clk 0:01:04]} 23. Nh4 {[%clk 0:01:04]}  g6 {[%clk 0:01:03]} 24. Qd2 {[%clk 0:00:56]}  Nd4 {[%clk 0:01:02]} 25. Bxd4 {[%clk 0:00:55]}  cxd4 {[%clk 0:01:02]} 26. Rec1 {[%clk 0:00:51]}  Qb6 {[%clk 0:01:01]} 27. Nf3 {[%clk 0:00:44]}  Bb4 {[%clk 0:00:59]} 28. Qh6 {[%clk 0:00:43]}  Bf8 {[%clk 0:00:57]} 29. Qh4 {[%clk 0:00:41]}  Qb2 {[%clk 0:00:42]} 30. Rd1 {[%clk 0:00:34]}  Rc2 {[%clk 0:00:36]} 31. Rf1 {[%clk 0:00:31]}  Qc3 {[%clk 0:00:33]} 32. Rad1 {[%clk 0:00:29]}  Rbb2 {[%clk 0:00:33]} 33. Qf4 {[%clk 0:00:28]}  Bg7 {[%clk 0:00:21]} 34. Ng5 {[%clk 0:00:28]}  Qb3 {[%clk 0:00:19]} 35. Qd6 {[%clk 0:00:25]}  h6 {[%clk 0:00:15]} 36. Nh3 {[%clk 0:00:23]}  Rd2 {[%clk 0:00:11]} 37. Rxd2 {[%clk 0:00:22]}  Rxd2 {[%clk 0:00:12]} 38. Nf4 {[%clk 0:00:23]}  Qb5 {[%clk 0:00:08]} 39. Rc1 {[%clk 0:00:19]}  Be5 {[%clk 0:00:08]} 40. Rc8+ {[%clk 0:00:15]}  Kh7 {[%clk 0:00:07]} 41. Qf8 {[%clk 0:00:16]}  h5 {[%clk 0:00:07]} 42. Qxf7+ {[%clk 0:00:16]} 1-0


[Site "https://www.chess.com"]